Workbook

Sheet ProgrammerNotes (hidden)
A1: ProgrammerNotes
A3: NOTE_ID | B3: DATE | C3: NOTE
A4: 1 | B4: 2015-11-11 | C4: Put VBA functions into a code module saved with the spreadsheet
A5: 2 | B5: 2015-11-11 | C5: Coded EEXP,ERFCC, and ERFF from 1996 spreadsheets (that still work -- go figure!)
A6: 3 | B6: 2015-11-11 | C6: Some built-in functions need "WorksheetFunction.NAME" to access in VBA code

Sheet 1DRFCAT-HYDM
A1: Model Name | B1: 1D_radial_flow_confined_aquifer_transient
A2: Model Type: | B2: Hydraulic Model
A3: References: | B3: Theis, C.V. 1935. The relation between the lowering of the piezometric surface and the rate and duration of discharge of a well using ground-water storage: American Geophysical Union Transactions, 16th Annual Meeting, v. 16, pt. 2, p. 519-524.
B4: Walton, W. C. 1989. Analytical Groundwater Modeling, Flow and Contaminant Migration, Lewis Publishers, Chelsea, MI.
A5: Method: | B5: Polynomial approximation ot exponential integral
A6: Author: | B6: Dr. T.G. Cleveland for CIVE6361/7332 Students; Spring 1995
B7: Rewrite in VBA Mac Excel 2011 Fall 2015
A8: Notes: | B8: Infinite Confined Aquifer
B9: Steady Pumping at Origin
B10: Computes Drawdown at radial distance, r, for different time values t
B11: Uses Polynomial approximation to well function (see references)
A12: Macros: | B12: W(U) | C12: Well Functions contained in Module1 as local to this worksheet macros
A14: Conversion Calculator (Use GoalSeek to find U.S Customary values for SI Units)
A15: Q | B15: 25 | C15: <=gpm | D15: =B15/7.48 -> 3.342245989 | E15: <=ft^3/min | F15: =D15*1440 -> 4812.834225 | G15: <=ft^3/day | H15: =D15/(3.28^3) -> 0.09471458914 | I15: <=m^3/min | J15: =H15*1440 -> 136.3890084 | K15: <=m^3/day
A16: T | B16: 0.76 | C16: <=ft^2/min | D16: =B16*1440 -> 1094.4 | E16: <=ft^2/day | F16: =B16*7.48 -> 5.6848 | G16: <=gpm/ft | H16: =D16/(3.28^2) -> 101.7251636 | I16: <=m^2/day | J16: =H16/1440 -> 0.07064247472 | K16: <=m^2/min
A18: MODEL INPUT VALUES
A19: Input Data (must use consistent length and time units!)
A20: Item | B20: Value | C20: Units | D20: Description
A21: Q | B21: 11 | C21: ft^3/min | D21: Pumping well discharge (L^3/t)
A22: T | B22: 0.76 | C22: ft^2/min | D22: Aquifer transmissivity (L^2/t)
A23: S | B23: 0.0005 | D23: Aquifer storage coefficient
A24: r | B24: 96 | C24: Radial distance of observation well from pumping well (L)
A25: Computed Constants
A26: Q/(4pT) | B26: =B21/(4*PI()*B22) -> 1.151779193
A27: Chart Title | B27: =CONCATENATE("Drawdown history at ",B24," (feet) from pumping well ") -> Drawdown history at 96 (feet) from pumping well
A28: Time | B28: Drawdown
A29: Elapsed Time (min) | B29: r (ft) | C29: u = (r^2 S / 4 T t) | D29: W(u) | E29: Drawdown(ft) | F29: Observed Drawdown (ft) | G29: Sq. Error
A30: 5 | B30: 96 | C30: =(B30^2*$B$23)/(4*$B$22*A30) -> 0.3031578947 | D30: =W(C30) -> 0.8979316137 | E30: =$B$26*D30 -> 1.03421895 | F30: 0.9615502519 | G30: =(E30-F30)^2 -> 0.005280739654
A31: 28 | B31: 96 | C31: =(B31^2*$B$23)/(4*$B$22*A31) -> 0.05413533835 | D31: =W(C31) -> 2.392463621 | E31: =$B$26*D31 -> 2.75558982 | F31: 2.665980229 | G31: =(E31-F31)^2 -> 0.008029878738
A32: 41 | B32: 96 | C32: 0.03697047497 | D32: 2.757051365 | E32: 3.175514397 | F32: 3.085508844 | G32: 0.008100999658
A33: 60 | B33: 96 | C33: 0.02526315789 | D33: 3.126296835 | E33: 3.600803647 | F33: 3.510970538 | G33: 0.008069987336
A34: 75 | B34: 96 | C34: 0.02021052632 | D34: 3.344444783 | E34: 3.852061915 | F34: 3.762523334 | G34: 0.008017157456
A35: 244 | B35: 96 | C35: 0.006212251941 | D35: 4.510218728 | E35: 5.194776088 | F35: 5.108185326 | G35: 0.007497960157
A36: 493 | B36: 96 | C36: 0.003074623679 | D36: 5.210429344 | E36: 6.001264107 | F36: 5.917009462 | G36: 0.007098845288
A37: 669 | B37: 96 | C37: 0.002265754071 | D37: 5.514896446 | E37: 6.35194298 | F37: 6.268764411 | G37: 0.006918674313
A38: 958 | B38: 96 | C38: 0.001582243709 | D38: 5.873277316 | E38: 6.764718609 | F38: 6.682835904 | G38: 0.006704777382
A39: 1129 | B39: 96 | C39: 0.001342594751 | D39: 6.03727763 | E39: 6.953610759 | F39: 6.872329031 | G39: 0.006606719233
A40: 1185 | B40: 96 | C40: 0.001279147235 | D40: 6.085624714 | E40: 7.009295924 | F40: 6.928192149 | G40: 0.006577822286
F42: SSE => | G42: =SUM(G30:G40) -> 0.0789035615

Sheet FunctionList (hidden)
A1: List of VBA Macro functions
D2: ARGUMENTS
A3: NAME | B3: FUNCTION | C3: REFERENCE | D3: ARG-1 | E3: ARG-2 | F3: ARG-3 | G3: ARG-4 | H3: RESULT | I3: REMARKS
A4: W(U) | B4: Exponential Integral | D4: 1 | H4: =W(D4) -> 0.21938393 | I4: Tested 11 Nov 2015 against Wenzel tabulation
A5: W(U,B) | B5: Exponential Integral | D5: 1 | E5: 1 | H5: =LEAKY(D5,E5) -> 0.1840760735 | I5: Tested 11 Nov 2015 against 1995 Hunt solution
